fUSD/lending_fUSD_20240624
["ID","MTS","AMOUNT","RATE_DAILY","PERIOD"]
[330294022,1719234710902,-2000.0,0.0004,80]
[330294023,1719234710930,-2000.0,0.0004,80]
[330294024,1719234710953,-2000.0,0.0004,80]
[330294025,1719234710977,-2000.0,0.0004,80]
[330294026,1719234711000,-151.0,0.0004,120]
[330294027,1719234711024,-172.15555556,0.0004,120]
[330294028,1719234711047,-200.0,0.0004,120]
[330294029,1719234711071,-500.0,0.0004,120]
[330294030,1719234711095,-850.0,0.0004,120]
[330294031,1719234711119,-150.0,0.0004,90]
[330294032,1719234711142,-299.87383845,0.0004,60]
[330294033,1719234711166,-175.13346,0.00040088,30]
[330294034,1719234711196,-175.13346,0.00040288,30]
[330294035,1719234711223,-150.0,0.00040398,120]
[330294036,1719234711248,-200.0,0.0004041,80]
[330294037,1719234711273,-150.0,0.00040422,120]
[330294038,1719234711297,-175.13346,0.00040488,30]
[330294039,1719234711320,-175.13346,0.00040688,30]
[330294040,1719234711344,-2725.0,0.000407,81]
[330294041,1719234711368,-172.15555556,0.00040712,120]
[330294042,1719234711393,-1335.345944,0.000408,30]
[330294043,1719234711418,-981.58349837,0.000409,120]
[330294044,1719234711442,-981.58349837,0.000409,120]
[330294045,1719234711467,-981.58349837,0.000409,120]
[330294046,1719234711492,-981.58349837,0.000409,120]
[330294047,1719234711517,-981.58349837,0.000409,120]
[330294048,1719234711541,-981.58349837,0.000409,120]
[330294049,1719234711571,-50000.0,0.00041,31]
[330294050,1719234711594,-174.35003686,0.00041,60]
[330294051,1719234711617,-2547.70340605,0.00041,30]
[330294052,1719234711643,-530.6769661,0.00041,120]
[330294053,1719234711665,-1516.11377748,0.00041,120]
[330294054,1719234711690,-175.13346,0.00041088,30]
[330294055,1719234711714,-1000.0,0.00041095,120]
[330294056,1719234711739,-500.0,0.00041095,120]
[330294057,1719234711763,-500.0,0.00041095,120]
[330294058,1719234711790,-506.21312771,0.00041095,120]
[330294059,1719234711813,-510.0,0.00041095,120]
[330294060,1719234711836,-200.0,0.00041096,60]
[330294061,1719234711859,-1000.0,0.00041096,30]
[330294062,1719234711881,-151.0,0.00041123,120]
[330294063,1719234711904,-150.0,0.00041248,120]
[330294064,1719234711929,-175.13346,0.00041288,30]
[330294065,1719234711951,-510.0,0.00041369,120]
[330294066,1719234711974,-1000.0,0.0004137,30]
[330294067,1719234711997,-576.69703455,0.000414,30]
[330294068,1719234712021,-172.15555556,0.00041425,120]
[330294069,1719234712044,-175.13346,0.00041488,30]
[330294070,1719234712069,-510.0,0.00041643,120]
[330294071,1719234712092,-1000.0,0.00041644,30]
[330294072,1719234712115,-175.13346,0.00041688,30]
[330294073,1719234712138,-392.30596212,0.000418,60]
[330294074,1719234712160,-499999.0,0.000418,60]
[330294075,1719234712184,-22740.40676413,0.000418,60]
[330294076,1719234712207,-1000000.0,0.000418,60]
[330294077,1719234712230,-200.0,0.00041917,90]
[330294078,1719234712419,-510.0,0.00041917,120]
[330294079,1719234712444,-1000.0,0.00041918,30]
[330294080,1719234712469,-150.0,0.00041941,120]
[330294081,1719234712496,-50000.0,0.00042,32]
[330294082,1719234712521,-321.18767132,0.00042,120]
[330294083,1719234712548,-955.54955712,0.00042,120]
[330294084,1719234712571,-202.80833249,0.00042,120]
[330294085,1719234712595,-985.17463467,0.00042,120]
[330294086,1719234712618,-1000000.0,0.00042,70]
[330294087,1719234712644,-1000.0,0.00042,120]
[330294088,1719234712668,-568.0,0.00042,120]
[330294089,1719234712694,-150.0,0.00042096,120]
[330294090,1719234712718,-172.15555556,0.00042137,120]
[330294091,1719234712742,-217.50803936,0.00042191,120]
[330294092,1719234712767,-1000.0,0.00042192,30]
[330294093,1719234712794,-151.0,0.00042247,120]
[330294094,1719234712817,-24006.42979617,0.0004225,70]
[330294095,1719234720841,-300.0,0.0004,30]
[330294096,1719234720868,-269.227,0.00041348,30]
[330294097,1719234720893,-475993.57020383,0.0004225,70]
[330294098,1719234720916,-1039.0,0.00042399,30]
[330294099,1719234720940,-1000.0,0.00042466,30]
[330294100,1719234720967,-1171.50255243,0.00042497,120]
[330294101,1719234720990,-500000.0,0.000425,70]
[330294102,1719234721015,-1000000.0,0.000425,60]
[330294103,1719234721037,-1000000.0,0.000426,65]
[330294104,1719234721061,-150.0,0.00042614,120]
[330294105,1719234721086,-1000.0,0.0004274,30]
[330294106,1719234721109,-500000.0,0.0004275,70]
[330294107,1719234721132,-154.84098216,0.000428,120]
[330294108,1719234721155,-172.15555556,0.00042849,120]
[330294109,1719234721179,-201.22921606,0.0004288,120]
[330294110,1719234721203,-150.0,0.00042884,120]
[330294111,1719234721226,-793.2317921,0.000429,120]
[330294112,1719234721249,-791.13592473,0.000429,30]
[330294113,1719234721276,-50000.0,0.00043,33]
[330294114,1719234721300,-1530.58742742,0.00043,30]
[330294115,1719234721322,-769.2791437,0.00043,30]
[330294116,1719234721346,-500000.0,0.00043,75]
[330294117,1719234721370,-293.8865469,0.00043,120]
[330294118,1719234721393,-2000.0,0.00043,30]
[330294119,1719234721418,-1000.0,0.00043014,30]
[330294120,1719234721441,-202.31519658,0.0004302,120]
[330294121,1719234721467,-150.0,0.00043024,120]
[330294122,1719234721492,-227.76677356,0.00043098,120]
[330294123,1719234721515,-1150.83770424,0.0004317,120]
[330294124,1719234721541,-1000.0,0.00043288,30]
[330294125,1719234721571,-150.0,0.00043344,120]
[330294126,1719234721594,-151.0,0.0004337,120]
[330294127,1719234721619,-200.0,0.00043424,100]
[330294128,1719234721646,-1000000.0,0.000435,80]
[330294129,1719234721670,-455000.0,0.000435,40]
[330294130,1719234721695,-1000000.0,0.000435,75]
[330294131,1719234721721,-150.0,0.00043521,120]
[330294132,1719234721745,-500.0,0.0004356,30]
[330294133,1719234721769,-172.15555556,0.00043562,120]
[330294134,1719234721795,-1000.0,0.00043562,30]
[330294135,1719234721820,-150.0,0.00043616,120]
[330294136,1719234721843,-203.56015273,0.000437,120]
[330294137,1719234721866,-2988.84724988,0.00043748,120]
[330294138,1719234721889,-2000.0,0.00043781,30]
[330294139,1719234721912,-464.65296524,0.000438,30]
[330294140,1719234721938,-484.04309627,0.000438,120]
[330294141,1719234721960,-532.8281663,0.000438,111]
[330294142,1719234721987,-508.43,0.00043835,120]
[330294143,1719234722010,-508.43,0.00043835,120]
[330294144,1719234722034,-508.43,0.00043835,120]
[330294145,1719234722058,-508.43,0.00043835,120]
[330294146,1719234722082,-508.43,0.00043835,120]
[330294147,1719234722107,-508.43,0.00043835,120]
[330294148,1719234722130,-508.43,0.00043835,120]
[330294149,1719234722154,-508.43,0.00043835,120]
[330294150,1719234722178,-508.43,0.00043835,120]
[330294151,1719234722208,-508.43,0.00043835,120]
[330294152,1719234722232,-508.43,0.00043835,120]
[330294153,1719234722257,-508.43,0.00043835,120]
[330294154,1719234722284,-508.43,0.00043835,120]
[330294155,1719234722308,-508.43,0.00043835,120]
[330294156,1719234722333,-508.43,0.00043835,120]
[330294157,1719234722357,-508.43,0.00043835,120]
[330294158,1719234722382,-508.43,0.00043835,120]
[330294159,1719234722411,-508.43,0.00043835,120]
[330294160,1719234722438,-508.43,0.00043835,120]
[330294161,1719234722466,-508.43,0.00043835,120]
[330294162,1719234722662,-508.43,0.00043835,120]
[330294163,1719234722690,-508.43,0.00043835,120]
[330294164,1719234722715,-508.43,0.00043835,120]
[330294165,1719234722740,-508.45518242,0.00043835,120]
[330294166,1719234722764,-500.0,0.00043835,30]
[330294167,1719234722790,-500.0,0.00043835,120]
[330294168,1719234722815,-2741.13,0.00043835,120]
[330294169,1719234722839,-2741.13,0.00043835,120]
[330294170,1719234722863,-2741.13,0.00043835,120]
[330294171,1719234722887,-2741.13,0.00043835,120]
[330294172,1719234722912,-2741.13,0.00043835,120]
[330294173,1719234722938,-2741.13,0.00043835,120]
[330294174,1719234722963,-2741.13,0.00043835,120]
[330294175,1719234722987,-2741.13,0.00043835,120]
[330294176,1719234723012,-2741.13,0.00043835,120]
[330294177,1719234723037,-2741.13,0.00043835,120]
[330294178,1719234723062,-2741.13,0.00043835,120]
[330294179,1719234723087,-2741.13,0.00043835,120]
[330294180,1719234723113,-2741.13,0.00043835,120]
[330294181,1719234723137,-2741.13,0.00043835,120]
[330294182,1719234723160,-2741.13,0.00043835,120]
[330294183,1719234723186,-2741.13,0.00043835,120]
[330294184,1719234723210,-2741.13,0.00043835,120]
[330294185,1719234723233,-2741.13,0.00043835,120]
[330294186,1719234723257,-2741.13,0.00043835,120]
[330294187,1719234723282,-2741.13,0.00043835,120]
[330294188,1719234723306,-2741.13,0.00043835,120]
[330294189,1719234723329,-2741.13,0.00043835,120]
[330294190,1719234723352,-2741.13,0.00043835,120]
[330294191,1719234723375,-2741.15036257,0.00043835,120]
[330294192,1719234723398,-1517.51,0.00043835,120]
[330294193,1719234723420,-200.0,0.00043836,60]
[330294194,1719234723446,-1000.0,0.00043836,30]
[330294195,1719234723469,-216.72235666,0.0004388,120]
[330294196,1719234723493,-750.37214691,0.0004388,30]
[330294197,1719234723517,-853.16448717,0.000439,120]
[330294198,1719234723542,-1410.22359582,0.000439,120]
[330294199,1719234723569,-2998.6,0.00043951,99]
[330294200,1719234723596,-50000.0,0.00044,34]
[330294201,1719234723619,-1000000.0,0.00044,75]
[330294202,1719234723646,-243.44605181,0.00044,60]
[330294203,1719234723669,-6077.97543036,0.00044,120]
[330294204,1719234723692,-279.28080305,0.00044,120]
[330294205,1719234723717,-750.0,0.00044,120]
[330294206,1719234723741,-3000.0,0.00044,120]
[330294207,1719234723765,-1000.0,0.00044,120]
[330294208,1719234723790,-345055.56637798,0.00044,70]
[330294209,1719234738008,-654944.43362202,0.00044,70]
[330294210,1719234738032,-2000.0,0.00044,30]
[330294211,1719234738059,-679.362937,0.00044,57]
[330294212,1719234738086,-300.0,0.00044,30]
[330294213,1719234738110,-500.0,0.00044108,30]
[330294214,1719234738136,-500.0,0.00044109,120]
[330294215,1719234738161,-1517.51,0.00044109,120]
[330294216,1719234738186,-1000.0,0.0004411,30]
[330294217,1719234738213,-150.0,0.0004413,120]
[330294218,1719234738237,-963.09547738,0.000442,120]
[330294219,1719234738261,-963.09547738,0.000442,120]
[330294220,1719234738285,-963.09547738,0.000442,120]
[330294221,1719234738308,-963.09547738,0.000442,120]
[330294222,1719234738491,-963.09547738,0.000442,120]
[330294223,1719234738515,-172.15555556,0.00044274,120]
[330294224,1719234738538,-226.79118363,0.0004438,120]
[330294225,1719234738568,-226.79118363,0.0004438,120]
[330294226,1719234738593,-226.79118363,0.0004438,120]
[330294227,1719234738618,-226.79118363,0.0004438,120]
[330294228,1719234738643,-226.79118363,0.0004438,120]
[330294229,1719234738668,-226.79118363,0.0004438,120]
[330294230,1719234738692,-226.79118363,0.0004438,120]
[330294231,1719234738718,-226.79118363,0.0004438,120]
[330294232,1719234738741,-226.79118363,0.0004438,120]
[330294233,1719234738764,-226.79118363,0.0004438,120]
[330294234,1719234738790,-226.79118363,0.0004438,120]
[330294235,1719234738814,-226.79118363,0.0004438,120]
[330294236,1719234738838,-226.79118363,0.0004438,120]
[330294237,1719234738861,-226.79118363,0.0004438,120]
[330294238,1719234738884,-226.79118363,0.0004438,120]
[330294239,1719234738907,-226.79118363,0.0004438,120]
[330294240,1719234738931,-226.79118363,0.0004438,120]
[330294241,1719234738955,-226.79118363,0.0004438,120]
[330294242,1719234738979,-226.79118363,0.0004438,120]
[330294243,1719234739003,-227.29,0.0004438,120]
[330294244,1719234739028,-907.23973451,0.0004438,120]
[330294245,1719234739054,-907.23973451,0.0004438,120]
[330294246,1719234739079,-907.23973451,0.0004438,120]
[330294247,1719234739104,-907.23973451,0.0004438,120]
[330294248,1719234739129,-907.23973451,0.0004438,120]
[330294249,1719234739155,-907.23973451,0.0004438,120]
[330294250,1719234739181,-907.23973451,0.0004438,120]
[330294251,1719234739209,-907.23973451,0.0004438,120]
[330294252,1719234739235,-907.23973451,0.0004438,120]
[330294253,1719234739261,-907.23973451,0.0004438,120]
[330294254,1719234739285,-907.23973451,0.0004438,120]
[330294255,1719234739309,-907.23973451,0.0004438,120]
[330294256,1719234739335,-907.23973451,0.0004438,120]
[330294257,1719234739359,-907.23973451,0.0004438,120]
[330294258,1719234739384,-907.23973451,0.0004438,120]
[330294259,1719234739409,-907.23973451,0.0004438,120]
[330294260,1719234739433,-907.23973451,0.0004438,120]
[330294261,1719234739460,-907.23973451,0.0004438,120]
[330294262,1719234739484,-907.23973451,0.0004438,120]
[330294263,1719234739507,-907.73,0.0004438,120]
[330294264,1719234739532,-182.82431769,0.0004438,120]
[330294265,1719234739560,-182.82431769,0.0004438,120]
[330294266,1719234739583,-182.82431769,0.0004438,120]
[330294267,1719234739609,-182.82431769,0.0004438,120]
[330294268,1719234739632,-182.82431769,0.0004438,120]
[330294269,1719234739660,-182.82431769,0.0004438,120]
[330294270,1719234739684,-182.82431769,0.0004438,120]
[330294271,1719234739709,-182.82431769,0.0004438,120]
[330294272,1719234739734,-182.82431769,0.0004438,120]
[330294273,1719234739758,-182.82431769,0.0004438,120]
[330294274,1719234739782,-182.82431769,0.0004438,120]
[330294275,1719234739808,-182.82431769,0.0004438,120]
[330294276,1719234739833,-182.82431769,0.0004438,120]
[330294277,1719234739855,-182.82431769,0.0004438,120]
[330294278,1719234739879,-182.82431769,0.0004438,120]
[330294279,1719234739901,-182.82431769,0.0004438,120]
[330294280,1719234739924,-182.82431769,0.0004438,120]
[330294281,1719234739947,-182.82431769,0.0004438,120]
[330294282,1719234739978,-182.82431769,0.0004438,120]
[330294283,1719234740006,-183.32,0.0004438,120]
[330294284,1719234740030,-731.37227077,0.0004438,120]
[330294285,1719234740055,-731.37227077,0.0004438,120]
[330294286,1719234740080,-731.37227077,0.0004438,120]
[330294287,1719234740104,-731.37227077,0.0004438,120]
[330294288,1719234740128,-731.37227077,0.0004438,120]
[330294289,1719234740152,-731.37227077,0.0004438,120]
[330294290,1719234740178,-731.37227077,0.0004438,120]
[330294291,1719234740206,-731.37227077,0.0004438,120]
[330294292,1719234740229,-731.37227077,0.0004438,120]
[330294293,1719234740253,-731.37227077,0.0004438,120]
[330294294,1719234740276,-731.37227077,0.0004438,120]
[330294295,1719234740301,-731.37227077,0.0004438,120]
[330294296,1719234740325,-731.37227077,0.0004438,120]
[330294297,1719234740348,-731.37227077,0.0004438,120]
[330294298,1719234740372,-731.37227077,0.0004438,120]
[330294299,1719234740395,-731.37227077,0.0004438,120]
[330294300,1719234740419,-731.37227077,0.0004438,120]
[330294301,1719234740441,-731.37227077,0.0004438,120]
[330294302,1719234740468,-731.37227077,0.0004438,120]
[330294303,1719234740491,-731.87,0.0004438,120]
[330294304,1719234740515,-243.28204007,0.0004438,120]
[330294305,1719234740539,-243.28204007,0.0004438,120]
[330294306,1719234740566,-243.28204007,0.0004438,120]
[330294307,1719234740590,-243.28204007,0.0004438,120]
[330294308,1719234740616,-243.28204007,0.0004438,120]
[330294309,1719234740641,-243.28204007,0.0004438,120]
[330294310,1719234740811,-243.28204007,0.0004438,120]
[330294311,1719234740839,-243.28204007,0.0004438,120]
[330294312,1719234740863,-243.28204007,0.0004438,120]
[330294313,1719234740888,-243.28204007,0.0004438,120]
[330294314,1719234740913,-243.28204007,0.0004438,120]
[330294315,1719234740936,-243.28204007,0.0004438,120]
[330294316,1719234740958,-243.28204007,0.0004438,120]
[330294317,1719234740982,-243.28204007,0.0004438,120]
[330294318,1719234741006,-243.28204007,0.0004438,120]
[330294319,1719234741032,-243.28204007,0.0004438,120]
[330294320,1719234741057,-243.28204007,0.0004438,120]
[330294321,1719234741082,-243.28204007,0.0004438,120]
[330294322,1719234741105,-243.28204007,0.0004438,120]
[330294323,1719234741129,-243.78,0.0004438,120]
[330294324,1719234741155,-973.20316027,0.0004438,120]
[330294325,1719234741179,-973.20316027,0.0004438,120]
[330294326,1719234741203,-973.20316027,0.0004438,120]
[330294327,1719234741227,-973.20316027,0.0004438,120]
[330294328,1719234741249,-973.20316027,0.0004438,120]
[330294329,1719234741273,-973.20316027,0.0004438,120]
[330294330,1719234741297,-973.20316027,0.0004438,120]
[330294331,1719234741320,-973.20316027,0.0004438,120]
[330294332,1719234741344,-973.20316027,0.0004438,120]
[330294333,1719234741369,-973.20316027,0.0004438,120]
[330294334,1719234741394,-973.20316027,0.0004438,120]
[330294335,1719234741419,-973.20316027,0.0004438,120]
[330294336,1719234741442,-973.20316027,0.0004438,120]
[330294337,1719234741468,-973.20316027,0.0004438,120]
[330294338,1719234741492,-973.20316027,0.0004438,120]
[330294339,1719234741516,-973.20316027,0.0004438,120]
[330294340,1719234741540,-973.20316027,0.0004438,120]
[330294341,1719234741568,-973.20316027,0.0004438,120]
[330294342,1719234741592,-973.20316027,0.0004438,120]
[330294343,1719234741617,-973.7,0.0004438,120]
[330294344,1719234741643,-598.95589399,0.00044383,120]
[330294345,1719234741668,-1517.51,0.00044383,120]
[330294346,1719234741692,-1000.0,0.00044384,30]
[330294347,1719234741720,-1885.63,0.00044384,120]
[330294348,1719234741745,-2282.66,0.00044384,120]
[330294349,1719234741769,-150.0,0.00044439,120]
[330294350,1719234741793,-151.0,0.00044493,120]
[330294351,1719234741816,-500000.0,0.000445,85]
[330294352,1719234741840,-1039.0,0.00044631,30]
[330294353,1719234741863,-500.0,0.00044656,30]
[330294354,1719234741889,-1517.51,0.00044657,120]
[330294355,1719234741914,-1000.0,0.00044658,30]
[330294356,1719234741938,-500000.0,0.0004475,80]
[330294357,1719234741963,-861.0,0.000449,30]
[330294358,1719234741988,-200.0,0.00044931,100]
[330294359,1719234742014,-1517.51,0.00044931,120]
[330294360,1719234742038,-1000.0,0.00044932,30]
[330294361,1719234742062,-172.15555556,0.00044986,120]
[330294362,1719234742090,-50000.0,0.00045,35]
[330294363,1719234742115,-200.02394486,0.00045,120]
[330294364,1719234742140,-170.01517664,0.00045,120]
[330294365,1719234742166,-1433.35409386,0.00045,90]
[330294366,1719234742190,-754.999985,0.00045,120]
[330294367,1719234742215,-2901.98030434,0.00045,120]
[330294368,1719234742239,-419.72318515,0.00045,45]
[330294369,1719234742262,-264.07620519,0.00045,30]
[330294370,1719234742286,-150.0,0.00045,85]
[330294371,1719234742310,-333.79549653,0.00045,30]
[330294372,1719234742333,-2951.01359567,0.00045,30]
[330294373,1719234742357,-161.0,0.00045,120]
[330294374,1719234742379,-2039.3408071,0.00045,30]
[330294375,1719234742402,-1000000.0,0.00045,50]
[330294376,1719234742425,-2474.75772666,0.00045,120]
[330294377,1719234742448,-403.0,0.00045,120]
[330294378,1719234742475,-2000.0,0.00045,90]
[330294379,1719234742499,-2000.0,0.00045,90]
[330294380,1719234742521,-2000.0,0.00045,90]
[330294381,1719234742544,-2000.0,0.00045,90]
[330294382,1719234742571,-500000.0,0.00045,90]
[330294383,1719234742594,-1000000.0,0.00045,90]
[330294384,1719234742618,-200.0,0.00045,120]
[330294385,1719234742642,-1000000.0,0.00045,75]
[330294386,1719234742667,-2000.0,0.00045,30]
[330294387,1719234742690,-12500.0,0.00045,120]
[330294388,1719234742714,-12500.0,0.00045,120]
[330294389,1719234742737,-12500.0,0.00045,120]
[330294390,1719234742760,-12500.0,0.00045062,120]
[330294391,1719234742784,-12500.0,0.00045062,120]
[330294392,1719234742809,-12500.0,0.00045062,120]
[330294393,1719234742832,-150.0,0.00045078,120]
[330294394,1719234742856,-12500.0,0.00045125,120]
[330294395,1719234742880,-12500.0,0.00045125,120]
[330294396,1719234743052,-154.7599,0.0004514,30]
[330294397,1719234743076,-12500.0,0.00045187,120]
[330294398,1719234743100,-500.0,0.00045204,30]
[330294399,1719234743125,-1517.51,0.00045205,120]
[330294400,1719234743149,-1000.0,0.00045205,30]
[330294401,1719234743172,-12500.0,0.0004525,120]
[330294402,1719234743196,-12500.0,0.0004525,120]
[330294403,1719234743223,-12500.0,0.00045312,120]
[330294404,1719234743252,-12500.0,0.00045312,120]
[330294405,1719234743276,-150.0,0.00045362,120]
[330294406,1719234743301,-12500.0,0.00045375,120]
[330294407,1719234743324,-12500.0,0.00045437,120]
[330294408,1719234743348,-9385.1,0.00045437,120]
[330294409,1719234743373,-1517.51,0.00045479,120]
[330294410,1719234743398,-1000.0,0.00045479,30]
[330294411,1719234743423,-150.0,0.00045484,120]
[330294412,1719234743447,-1000000.0,0.000455,50]
[330294413,1719234743476,-1000000.0,0.000455,90]
[330294414,1719234743500,-12500.0,0.000455,120]
[330294415,1719234743526,-150.0,0.00045538,120]
[330294416,1719234743549,-12500.0,0.00045563,120]
[330294417,1719234743577,-151.0,0.00045616,120]
[330294418,1719234743602,-12500.0,0.00045625,120]
[330294419,1719234743628,-150.0,0.00045668,120]
[330294420,1719234743654,-12500.0,0.00045688,120]
[330294421,1719234743678,-172.15555556,0.00045699,120]
[330294422,1719234743703,-12500.0,0.0004575,120]
[330294423,1719234743727,-500.0,0.00045752,30]
[330294424,1719234743751,-1517.51,0.00045753,120]
[330294425,1719234743775,-1000.0,0.00045753,30]
[330294426,1719234743803,-150.0,0.00045755,120]
[330294427,1719234743828,-12500.0,0.00045813,120]
[330294428,1719234743853,-150.0,0.00045818,120]
[330294429,1719234743876,-12500.0,0.00045875,120]
[330294430,1719234743901,-150.0,0.00045934,120]
[330294431,1719234743925,-12500.0,0.00045938,120]
[330294432,1719234743953,-50000.0,0.00046,36]
[330294433,1719234743979,-167.7,0.00046,96]
[330294434,1719234744003,-1000.0,0.00046,30]
[330294435,1719234744030,-650.0,0.00046,120]
[330294436,1719234744056,-1000.0,0.00046,120]
[330294437,1719234744082,-317940.57164055,0.00046,60]
[330294438,1719234748428,-682059.42835945,0.00046,60]
[330294439,1719234748452,-500000.0,0.00046,80]
[330294440,1719234748476,-700000.0,0.00046,75]
[330294441,1719234748500,-2000.0,0.00046,30]
[330294442,1719234748523,-12499.99,0.00046,120]
[330294443,1719234748547,-500.0,0.00046026,30]
[330294444,1719234748573,-500.0,0.00046026,30]
[330294445,1719234748596,-501.29257497,0.00046026,30]
[330294446,1719234748620,-500.0,0.00046026,30]
[330294447,1719234748644,-1517.51,0.00046027,120]
[330294448,1719234748668,-1000.0,0.00046027,30]
[330294449,1719234748691,-150.0,0.00046252,120]
[330294450,1719234748715,-500.0,0.000463,30]
[330294451,1719234748740,-1517.51,0.00046301,120]
[330294452,1719234748763,-1000.0,0.00046301,30]
[330294453,1719234748787,-172.15555556,0.00046411,120]
[330294454,1719234748812,-200.0,0.00046438,100]
[330294455,1719234748836,-902.03736313,0.000465,120]
[330294456,1719234748859,-500000.0,0.000465,90]
[330294457,1719234748882,-500.0,0.00046574,30]
[330294458,1719234748906,-500.0,0.00046574,30]
[330294459,1719234748931,-500.0,0.00046575,30]
[330294460,1719234748954,-1517.51,0.00046575,120]
[330294461,1719234748979,-200.0,0.00046575,60]
[330294462,1719234749002,-1075.61325647,0.00046575,30]
[330294463,1719234749027,-151.0,0.0004674,120]
[330294464,1719234749052,-500.0,0.00046848,30]
[330294465,1719234749078,-415.40692488,0.00046849,30]
[330294466,1719234749102,-150.0,0.00046849,30]
[330294467,1719234749126,-150.0,0.00046849,30]
[330294468,1719234749150,-150.0,0.00046849,30]
[330294469,1719234749174,-180.14148016,0.00046849,30]
[330294470,1719234749198,-150.0,0.00046849,30]
[330294471,1719234749224,-150.0,0.00046849,30]
[330294472,1719234749248,-150.0,0.00046849,30]
[330294473,1719234749272,-150.0,0.00046849,30]
[330294474,1719234749296,-150.0,0.00046849,30]
[330294475,1719234749324,-150.0,0.00046849,30]
[330294476,1719234749348,-185.36291707,0.00046849,30]
[330294477,1719234749374,-1517.51,0.00046849,120]
[330294478,1719234749399,-415.40692488,0.00046901,30]
[330294479,1719234749423,-180.14148016,0.00046901,30]
[330294480,1719234749447,-150.0,0.00046903,30]
[330294481,1719234749476,-415.40692488,0.00046954,30]
[330294482,1719234749499,-180.14148016,0.00046954,30]
[330294483,1719234749526,-150.0,0.00046957,30]
[330294484,1719234749550,-1039.0,0.0004698,30]
[330294485,1719234749581,-50000.0,0.00047,37]
[330294486,1719234749607,-2401.56298111,0.00047,120]
[330294487,1719234749631,-479.10619825,0.00047,120]
[330294488,1719234749659,-1000000.0,0.00047,60]
[330294489,1719234749684,-2500.0,0.00047,120]
[330294490,1719234749715,-185780.0,0.00047,100]
[330294491,1719234749741,-415.40692488,0.00047006,30]
[330294492,1719234749767,-180.14148016,0.00047006,30]
[330294493,1719234749794,-150.0,0.00047011,30]
[330294494,1719234749819,-150.0,0.00047035,30]
[330294495,1719234749845,-415.40692488,0.00047059,30]
[330294496,1719234749869,-180.14148016,0.00047059,30]
[330294497,1719234749894,-150.0,0.00047065,30]
[330294498,1719234749920,-150.0,0.00047109,30]
[330294499,1719234749946,-415.40692488,0.00047111,30]
[330294500,1719234749974,-180.14148016,0.00047111,30]
[330294501,1719234749998,-150.0,0.0004712,30]
[330294502,1719234750023,-500.0,0.00047122,30]
[330294503,1719234750048,-500.0,0.00047122,30]
[330294504,1719234750073,-1517.51,0.00047123,120]
[330294505,1719234750099,-172.15555556,0.00047123,120]
[330294506,1719234750123,-415.40692488,0.00047164,30]
[330294507,1719234750147,-180.14148016,0.00047164,30]
[330294508,1719234750170,-150.0,0.00047174,30]
[330294509,1719234750196,-6542.4,0.00047202,117]
[330294510,1719234750227,-415.40692488,0.00047217,30]
[330294511,1719234750251,-180.14148016,0.00047217,30]
[330294512,1719234750276,-150.0,0.0004722,30]
[330294513,1719234750300,-150.0,0.00047228,30]
[330294514,1719234750325,-150.0,0.00047235,120]
[330294515,1719234750351,-415.40692488,0.00047269,30]
[330294516,1719234750375,-180.14148016,0.00047269,30]
[330294517,1719234750527,-150.0,0.00047282,30]
[330294518,1719234750552,-415.40692488,0.00047322,30]
[330294519,1719234750580,-180.14148016,0.00047322,30]
[330294520,1719234750606,-150.0,0.00047337,30]
[330294521,1719234750630,-150.0,0.00047369,30]